fUST/lending_fUST_20260528
["ID","MTS","AMOUNT","RATE_DAILY","PERIOD"]
[423178725,1779906645000,-500.0,9.041e-05,2]
[423178718,1779906645000,-500.0,9.041e-05,2]
[423178737,1779906645000,-500.0,9.041e-05,2]
[423178735,1779906645000,-500.0,9.041e-05,2]
[423178749,1779906645000,-296.2354861,9.315e-05,2]
[423178739,1779906645000,-10000.0,9.123e-05,2]
[423178732,1779906645000,-500.0,9.041e-05,2]
[423178734,1779906645000,-578.04,9.041e-05,2]
[423178731,1779906645000,-500.0,9.041e-05,2]
[423178733,1779906645000,-500.0,9.041e-05,2]
[423178724,1779906645000,-500.0,9.041e-05,2]
[423178728,1779906645000,-500.0,9.041e-05,2]
[423178730,1779906645000,-500.0,9.041e-05,2]
[423178726,1779906645000,-500.0,9.041e-05,2]
[423178729,1779906645000,-500.0,9.041e-05,2]
[423178736,1779906645000,-500.0,9.041e-05,2]
[423178727,1779906645000,-500.0,9.041e-05,2]
[423178820,1779906646000,-500.0,9.315e-05,2]
[423178822,1779906646000,-504.1,9.315e-05,2]
[423178821,1779906646000,-1479.83,9.315e-05,2]
[423178823,1779906646000,-448.72,9.315e-05,2]
[423178824,1779906646000,-500.0,9.315e-05,2]
[423178818,1779906646000,-573.21,9.315e-05,2]
[423178812,1779906646000,-500.0,9.315e-05,2]
[423178816,1779906646000,-500.0,9.315e-05,2]
[423178808,1779906646000,-967.47,9.315e-05,2]
[423178813,1779906646000,-1139.82,9.315e-05,2]
[423178804,1779906646000,-500.0,9.315e-05,2]
[423178814,1779906646000,-500.0,9.315e-05,2]
[423178819,1779906646000,-507.42,9.315e-05,2]
[423178825,1779906646000,-500.0,9.315e-05,2]
[423178838,1779906646000,-500.0,9.315e-05,2]
[423178827,1779906646000,-588.39,9.315e-05,2]
[423178828,1779906646000,-529.4,9.315e-05,2]
[423178817,1779906646000,-500.0,9.315e-05,2]
[423178840,1779906646000,-500.0,9.315e-05,2]
[423178830,1779906646000,-500.0,9.315e-05,2]
[423178842,1779906646000,-500.0,9.315e-05,2]
[423178841,1779906646000,-7883.58,9.315e-05,2]
[423178829,1779906646000,-1068.64,9.315e-05,2]
[423178831,1779906646000,-500.0,9.315e-05,2]
[423178836,1779906646000,-380.76,9.315e-05,2]
[423178832,1779906646000,-560.44,9.315e-05,2]
[423178837,1779906646000,-524.92,9.315e-05,2]
[423178833,1779906646000,-1023.91,9.315e-05,2]
[423178807,1779906646000,-500.0,9.315e-05,2]
[423178826,1779906646000,-500.0,9.315e-05,2]
[423178811,1779906646000,-546.75,9.315e-05,2]
[423178795,1779906646000,-500.0,9.315e-05,2]
[423178815,1779906646000,-500.0,9.315e-05,2]
[423178834,1779906646000,-500.0,9.315e-05,2]
[423178775,1779906646000,-500.0,9.315e-05,2]
[423178774,1779906646000,-500.0,9.315e-05,2]
[423178786,1779906646000,-500.0,9.315e-05,2]
[423178785,1779906646000,-500.0,9.315e-05,2]
[423178776,1779906646000,-500.0,9.315e-05,2]
[423178779,1779906646000,-500.0,9.315e-05,2]
[423178777,1779906646000,-500.0,9.315e-05,2]
[423178780,1779906646000,-500.0,9.315e-05,2]
[423178783,1779906646000,-383.08414733,9.315e-05,2]
[423178778,1779906646000,-500.0,9.315e-05,2]
[423178782,1779906646000,-500.0,9.315e-05,2]
[423178781,1779906646000,-624.81317788,9.315e-05,2]
[423178789,1779906646000,-500.0,9.315e-05,2]
[423178788,1779906646000,-500.0,9.315e-05,2]
[423178799,1779906646000,-500.0,9.315e-05,2]
[423178792,1779906646000,-500.0,9.315e-05,2]
[423178796,1779906646000,-500.0,9.315e-05,2]
[423178798,1779906646000,-500.0,9.315e-05,2]
[423178802,1779906646000,-500.0,9.315e-05,2]
[423178801,1779906646000,-429.36,9.315e-05,2]
[423178800,1779906646000,-500.0,9.315e-05,2]
[423178794,1779906646000,-616.32,9.315e-05,2]
[423178793,1779906646000,-500.0,9.315e-05,2]
[423178797,1779906646000,-500.0,9.315e-05,2]
[423178803,1779906646000,-500.0,9.315e-05,2]
[423178806,1779906646000,-965.77,9.315e-05,2]
[423178805,1779906646000,-500.0,9.315e-05,2]
[423178809,1779906646000,-683.64,9.315e-05,2]
[423178810,1779906646000,-506.11,9.315e-05,2]
[423178773,1779906646000,-500.0,9.315e-05,2]
[423178835,1779906646000,-500.0,9.315e-05,2]
[423178843,1779906646000,-500.0,9.315e-05,2]
[423178875,1779906646000,-500.0,9.589e-05,2]
[423178882,1779906646000,-500.0,9.589e-05,2]
[423178886,1779906646000,-526.08,9.589e-05,2]
[423178885,1779906646000,-500.0,9.589e-05,2]
[423178898,1779906646000,-500.0,9.589e-05,2]
[423178901,1779906646000,-683.64,9.589e-05,2]
[423178900,1779906646000,-967.47,9.589e-05,2]
[423178887,1779906646000,-500.0,9.589e-05,2]
[423178894,1779906646000,-500.0,9.589e-05,2]
[423178903,1779906646000,-506.11,9.589e-05,2]
[423178889,1779906646000,-500.0,9.589e-05,2]
[423178896,1779906646000,-965.77,9.589e-05,2]
[423178892,1779906646000,-579.11,9.589e-05,2]
[423178905,1779906646000,-546.75,9.589e-05,2]
[423178891,1779906646000,-500.0,9.589e-05,2]
[423178907,1779906646000,-540.24,9.589e-05,2]
[423178909,1779906646000,-1139.82,9.589e-05,2]
[423178911,1779906646000,-500.0,9.589e-05,2]
[423178926,1779906646000,-504.1,9.589e-05,2]
[423178924,1779906646000,-1479.83,9.589e-05,2]
[423178922,1779906646000,-500.0,9.589e-05,2]
[423178914,1779906646000,-500.0,9.589e-05,2]
[423178912,1779906646000,-500.0,9.589e-05,2]
[423178928,1779906646000,-500.0,9.589e-05,2]
[423178920,1779906646000,-507.42,9.589e-05,2]
[423178930,1779906646000,-500.0,9.589e-05,2]
[423178918,1779906646000,-573.21,9.589e-05,2]
[423178916,1779906646000,-500.0,9.589e-05,2]
[423178839,1779906646000,-500.0,9.315e-05,2]
[423178883,1779906646000,-500.0,9.589e-05,2]
[423178884,1779906646000,-500.0,9.589e-05,2]
[423178932,1779906646000,-500.0,9.589e-05,2]
[423178880,1779906646000,-500.0,9.589e-05,2]
[423178881,1779906646000,-224.64,9.589e-05,2]
[423178845,1779906646000,-500.0,9.315e-05,2]
[423178857,1779906646000,-207.594228,9.589e-05,2]
[423178856,1779906646000,-207.594228,9.589e-05,2]
[423178854,1779906646000,-1152.0,9.381e-05,2]
[423178859,1779906646000,-207.594228,9.589e-05,2]
[423178848,1779906646000,-500.0,9.315e-05,2]
[423178851,1779906646000,-500.0,9.315e-05,2]
[423178847,1779906646000,-500.0,9.315e-05,2]
[423178850,1779906646000,-500.0,9.315e-05,2]
[423178852,1779906646000,-578.04,9.315e-05,2]
[423178853,1779906646000,-500.0,9.315e-05,2]
[423178861,1779906646000,-500.0,9.589e-05,2]
[423178872,1779906646000,-475.48,9.589e-05,2]
[423178871,1779906646000,-500.0,9.589e-05,2]
[423178855,1779906646000,-1085.4852,9.589e-05,2]
[423178860,1779906646000,-207.594228,9.589e-05,2]
[423178873,1779906646000,-578.88,9.589e-05,2]
[423178878,1779906646000,-500.0,9.589e-05,2]
[423178879,1779906646000,-500.0,9.589e-05,2]
[423178877,1779906646000,-500.0,9.589e-05,2]
[423178876,1779906646000,-500.0,9.589e-05,2]
[423178867,1779906646000,-500.0,9.589e-05,2]
[423178874,1779906646000,-500.0,9.589e-05,2]
[423178870,1779906646000,-500.0,9.589e-05,2]
[423178865,1779906646000,-500.0,9.589e-05,2]
[423178868,1779906646000,-207.24,9.589e-05,2]
[423178866,1779906646000,-500.0,9.589e-05,2]
[423178864,1779906646000,-500.0,9.589e-05,2]
[423178862,1779906646000,-500.0,9.589e-05,2]
[423178869,1779906646000,-500.0,9.589e-05,2]
[423179011,1779906647000,-500.0,9.863e-05,2]
[423179015,1779906647000,-346.8,9.863e-05,2]
[423179019,1779906647000,-500.0,9.863e-05,2]
[423179017,1779906647000,-500.0,9.863e-05,2]
[423178995,1779906647000,-500.0,9.863e-05,2]
[423178989,1779906647000,-500.0,9.863e-05,2]
[423178997,1779906647000,-500.0,9.863e-05,2]
[423178998,1779906647000,-449.8,9.863e-05,2]
[423179013,1779906647000,-500.0,9.863e-05,2]
[423179009,1779906647000,-631.52,9.863e-05,2]
[423178991,1779906647000,-500.0,9.863e-05,2]
[423178993,1779906647000,-500.0,9.863e-05,2]
[423179020,1779906647000,-500.0,9.863e-05,2]
[423179024,1779906647000,-500.0,9.863e-05,2]
[423179042,1779906647000,-500.0,9.863e-05,2]
[423179028,1779906647000,-500.0,9.863e-05,2]
[423179033,1779906647000,-683.64,9.863e-05,2]
[423179022,1779906647000,-500.0,9.863e-05,2]
[423179026,1779906647000,-965.77,9.863e-05,2]
[423179034,1779906647000,-506.11,9.863e-05,2]
[423179036,1779906647000,-546.75,9.863e-05,2]
[423179038,1779906647000,-1139.82,9.863e-05,2]
[423179041,1779906647000,-500.0,9.863e-05,2]
[423179048,1779906647000,-573.21,9.863e-05,2]
[423179050,1779906647000,-507.42,9.863e-05,2]
[423179052,1779906647000,-500.0,9.863e-05,2]
[423179044,1779906647000,-500.0,9.863e-05,2]
[423179007,1779906647000,-500.0,9.863e-05,2]
[423179030,1779906647000,-967.47,9.863e-05,2]
[423179005,1779906647000,-500.0,9.863e-05,2]
[423178978,1779906647000,-244.0,9.764e-05,2]
[423179002,1779906647000,-500.0,9.863e-05,2]
[423178933,1779906647000,-588.39,9.589e-05,2]
[423178935,1779906647000,-529.4,9.589e-05,2]
[423178937,1779906647000,-1068.64,9.589e-05,2]
[423178939,1779906647000,-500.0,9.589e-05,2]
[423178947,1779906647000,-500.0,9.589e-05,2]
[423178954,1779906647000,-7883.58,9.589e-05,2]
[423178943,1779906647000,-1023.91,9.589e-05,2]
[423178951,1779906647000,-500.0,9.589e-05,2]
[423178945,1779906647000,-500.0,9.589e-05,2]
[423178941,1779906647000,-500.0,9.589e-05,2]
[423178949,1779906647000,-500.0,9.589e-05,2]
[423178952,1779906647000,-500.0,9.589e-05,2]
[423178958,1779906647000,-500.0,9.589e-05,2]
[423178956,1779906647000,-500.0,9.589e-05,2]
[423178960,1779906647000,-500.0,9.589e-05,2]
[423178974,1779906647000,-6299.5611744,9.727e-05,2]
[423178962,1779906647000,-500.0,9.589e-05,2]
[423178981,1779906647000,-500.0,9.863e-05,2]
[423178976,1779906647000,-1000.0,9.764e-05,2]
[423178966,1779906647000,-163.25172575,9.589e-05,2]
[423178968,1779906647000,-578.04,9.589e-05,2]
[423178964,1779906647000,-500.0,9.589e-05,2]
[423178979,1779906647000,-1085.4852,9.863e-05,2]
[423178970,1779906647000,-500.0,9.589e-05,2]
[423178972,1779906647000,-500.0,9.589e-05,2]
[423178983,1779906647000,-500.0,9.863e-05,2]
[423178985,1779906647000,-500.0,9.863e-05,2]
[423178987,1779906647000,-500.0,9.863e-05,2]
[423179004,1779906647000,-360.96,9.863e-05,2]
[423179000,1779906647000,-500.0,9.863e-05,2]
[423179046,1779906647000,-500.0,9.863e-05,2]
[423179084,1779906647000,-500.0,9.863e-05,2]
[423179056,1779906647000,-504.1,9.863e-05,2]
[423179113,1779906647000,-500.0,0.00010136,2]
[423179111,1779906647000,-500.0,0.00010136,2]
[423179119,1779906647000,-500.0,0.00010136,2]
[423179132,1779906647000,-606.43,0.00010136,2]
[423179134,1779906647000,-500.0,0.00010136,2]
[423179121,1779906647000,-199.59,0.00010136,2]
[423179136,1779906647000,-500.0,0.00010136,2]
[423179149,1779906647000,-683.64,0.00010136,2]
[423179138,1779906647000,-500.0,0.00010136,2]
[423179155,1779906647000,-1139.82,0.00010136,2]
[423179151,1779906647000,-506.11,0.00010136,2]
[423179157,1779906647000,-500.0,0.00010136,2]
[423179153,1779906647000,-546.75,0.00010136,2]
[423179140,1779906647000,-500.0,0.00010136,2]
[423179142,1779906647000,-500.0,0.00010136,2]
[423179144,1779906647000,-965.77,0.00010136,2]
[423179148,1779906647000,-967.47,0.00010136,2]
[423179146,1779906647000,-500.0,0.00010136,2]
[423179159,1779906647000,-500.0,0.00010136,2]
[423179172,1779906647000,-504.1,0.00010136,2]
[423179161,1779906647000,-500.0,0.00010136,2]
[423179174,1779906647000,-244.36,0.00010136,2]
[423179163,1779906647000,-500.0,0.00010136,2]
[423179165,1779906647000,-573.21,0.00010136,2]
[423179169,1779906647000,-500.0,0.00010136,2]
[423179171,1779906647000,-1479.83,0.00010136,2]
[423179176,1779906647000,-500.0,0.00010136,2]
[423179167,1779906647000,-507.42,0.00010136,2]
[423179054,1779906647000,-1479.83,9.863e-05,2]
[423179128,1779906647000,-500.0,0.00010136,2]
[423179124,1779906647000,-500.0,0.00010136,2]
[423179086,1779906647000,-7883.58,9.863e-05,2]
[423179115,1779906647000,-500.0,0.00010136,2]
[423179117,1779906647000,-500.0,0.00010136,2]
[423179060,1779906647000,-500.0,9.863e-05,2]
[423179062,1779906647000,-500.0,9.863e-05,2]
[423179074,1779906647000,-1023.91,9.863e-05,2]
[423179070,1779906647000,-500.0,9.863e-05,2]
[423179066,1779906647000,-529.4,9.863e-05,2]
[423179078,1779906647000,-500.0,9.863e-05,2]
[423179072,1779906647000,-500.0,9.863e-05,2]
[423179068,1779906647000,-1068.64,9.863e-05,2]
[423179076,1779906647000,-500.0,9.863e-05,2]
[423179064,1779906647000,-588.39,9.863e-05,2]
[423179082,1779906647000,-500.0,9.863e-05,2]
[423179080,1779906647000,-500.0,9.863e-05,2]
[423179097,1779906647000,-578.04,9.863e-05,2]
[423179058,1779906647000,-500.0,9.863e-05,2]
[423179103,1779906647000,-1085.4852,0.00010136,2]
[423179090,1779906647000,-500.0,9.863e-05,2]
[423179101,1779906647000,-239.56,9.863e-05,2]
[423179093,1779906647000,-500.0,9.863e-05,2]
[423179092,1779906647000,-500.0,9.863e-05,2]
[423179100,1779906647000,-500.0,9.863e-05,2]
[423179095,1779906647000,-500.0,9.863e-05,2]
[423179107,1779906647000,-500.0,0.00010136,2]
[423179088,1779906647000,-500.0,9.863e-05,2]
[423179105,1779906647000,-500.0,0.00010136,2]
[423179109,1779906647000,-500.0,0.00010136,2]
[423179123,1779906647000,-500.0,0.00010136,2]
[423179126,1779906647000,-500.0,0.00010136,2]
[423179130,1779906647000,-500.0,0.00010136,2]
[423179180,1779906648000,-588.39,0.00010136,2]
[423179182,1779906648000,-529.4,0.00010136,2]
[423179178,1779906648000,-500.0,0.00010136,2]
[423179184,1779906648000,-1068.64,0.00010136,2]
[423179197,1779906648000,-500.0,0.00010136,2]
[423179199,1779906648000,-500.0,0.00010136,2]
[423179185,1779906648000,-500.0,0.00010136,2]
[423179202,1779906648000,-500.0,0.00010136,2]
[423179201,1779906648000,-7883.58,0.00010136,2]
[423179506,1779906649000,-500.0,0.00010958,2]
[423179517,1779906649000,-500.0,0.00010958,2]
[423179508,1779906649000,-500.0,0.00010958,2]
[423179504,1779906649000,-504.1,0.00010958,2]
[423179514,1779906649000,-1068.64,0.00010958,2]
[423179502,1779906649000,-1479.83,0.00010958,2]
[423179520,1779906649000,-500.0,0.00010958,2]
[423179512,1779906649000,-529.4,0.00010958,2]
[423179500,1779906649000,-459.0,0.00010958,2]
[423179498,1779906649000,-507.42,0.00010958,2]
[423179496,1779906649000,-573.21,0.00010958,2]
[423179510,1779906649000,-588.39,0.00010958,2]
[423179519,1779906649000,-1023.91,0.00010958,2]
[423179532,1779906649000,-500.0,0.00010958,2]
[423179485,1779906649000,-546.75,0.00010958,2]
[423179536,1779906649000,-578.04,0.00010958,2]
[423179524,1779906649000,-500.0,0.00010958,2]
[423179538,1779906649000,-500.0,0.00010958,2]
[423179528,1779906649000,-7883.58,0.00010958,2]
[423179530,1779906649000,-500.0,0.00010958,2]
[423179526,1779906649000,-500.0,0.00010958,2]
[423179540,1779906649000,-446.02060991,0.00011,2]
[423179542,1779906649000,-463.81639966,0.00011,2]
[423179544,1779906649000,-446.02060991,0.000111,2]
[423179546,1779906649000,-463.81639966,0.000111,2]
[423179548,1779906649000,-8514.39677585,0.00011145,2]
[423179522,1779906649000,-437.44,0.00010958,2]
[423179483,1779906649000,-506.11,0.00010958,2]
[423179454,1779906649000,-500.0,0.00010958,2]
[423179479,1779906649000,-967.47,0.00010958,2]
[423179441,1779906649000,-446.02060991,0.000108,2]
[423179436,1779906649000,-160.0,0.00010798,2]
[423179434,1779906649000,-160.0,0.00010798,2]
[423179439,1779906649000,-766.98895499,0.00010798,2]
[423179443,1779906649000,-463.81639966,0.000108,2]
[423179444,1779906649000,-163.0442,0.00010889,2]
[423179446,1779906649000,-446.02060991,0.000109,2]
[423179448,1779906649000,-463.81639966,0.000109,2]
[423179450,1779906649000,-500.0,0.00010958,2]
[423179550,1779906649000,-446.02060991,0.000112,2]
[423179452,1779906649000,-500.0,0.00010958,2]
[423179464,1779906649000,-500.0,0.00010958,2]
[423179481,1779906649000,-683.64,0.00010958,2]
[423179460,1779906649000,-502.34,0.00010958,2]
[423179458,1779906649000,-500.0,0.00010958,2]
[423179462,1779906649000,-500.0,0.00010958,2]
[423179468,1779906649000,-500.0,0.00010958,2]
[423179466,1779906649000,-500.0,0.00010958,2]
[423179470,1779906649000,-500.0,0.00010958,2]
[423179472,1779906649000,-727.3586,0.00010958,2]
[423179474,1779906649000,-500.0,0.00010958,2]
[423179477,1779906649000,-500.0,0.00010958,2]
[423179487,1779906649000,-1139.82,0.00010958,2]
[423179475,1779906649000,-965.77,0.00010958,2]
[423179491,1779906649000,-500.0,0.00010958,2]
[423179494,1779906649000,-500.0,0.00010958,2]
[423179456,1779906649000,-500.0,0.00010958,2]
[423179554,1779906649000,-500.0,0.00011232,2]
[423179534,1779906649000,-500.0,0.00010958,2]
[423179560,1779906649000,-500.0,0.00011232,2]
[423179624,1779906649000,-1023.91,0.00011232,2]
[423179635,1779906649000,-500.0,0.00011232,2]
[423179629,1779906649000,-500.0,0.00011232,2]
[423179637,1779906649000,-500.0,0.00011232,2]
[423179622,1779906649000,-500.0,0.00011232,2]
[423179633,1779906649000,-7883.58,0.00011232,2]
[423179641,1779906649000,-578.04,0.00011232,2]
[423179640,1779906649000,-500.0,0.00011232,2]
[423179643,1779906649000,-500.0,0.00011232,2]
[423179660,1779906649000,-500.0,0.00011506,2]
[423179658,1779906649000,-500.0,0.00011506,2]
[423179646,1779906649000,-500.0,0.00011506,2]
[423179648,1779906649000,-500.0,0.00011506,2]
[423179664,1779906649000,-500.0,0.00011506,2]
[423179650,1779906649000,-500.0,0.00011506,2]
[423179654,1779906649000,-500.0,0.00011506,2]
[423179652,1779906649000,-500.0,0.00011506,2]
[423179656,1779906649000,-500.0,0.00011506,2]
[423179666,1779906649000,-500.0,0.00011506,2]
[423179668,1779906649000,-727.3586,0.00011506,2]
[423179670,1779906649000,-965.77,0.00011506,2]
[423179674,1779906649000,-683.64,0.00011506,2]
[423179676,1779906649000,-506.11,0.00011506,2]
[423179678,1779906649000,-546.75,0.00011506,2]
[423179672,1779906649000,-967.47,0.00011506,2]
[423179680,1779906649000,-1139.82,0.00011506,2]
[423179552,1779906649000,-463.81639966,0.000112,2]
[423179627,1779906649000,-500.0,0.00011232,2]
[423179631,1779906649000,-500.0,0.00011232,2]
[423179662,1779906649000,-500.0,0.00011506,2]
[423179618,1779906649000,-529.4,0.00011232,2]
[423179564,1779906649000,-500.0,0.00011232,2]
[423179620,1779906649000,-1068.64,0.00011232,2]
[423179562,1779906649000,-500.0,0.00011232,2]
[423179566,1779906649000,-500.0,0.00011232,2]
[423179568,1779906649000,-500.0,0.00011232,2]
[423179570,1779906649000,-500.0,0.00011232,2]
[423179576,1779906649000,-500.0,0.00011232,2]
[423179558,1779906649000,-500.0,0.00011232,2]
[423179572,1779906649000,-500.0,0.00011232,2]
[423179574,1779906649000,-727.3586,0.00011232,2]
[423179579,1779906649000,-247.64,0.00011232,2]
[423179578,1779906649000,-965.77,0.00011232,2]
[423179588,1779906649000,-967.47,0.00011232,2]
[423179556,1779906649000,-500.0,0.00011232,2]
[423179614,1779906649000,-500.0,0.00011232,2]
[423179610,1779906649000,-504.1,0.00011232,2]
[423179590,1779906649000,-683.64,0.00011232,2]
[423179608,1779906649000,-1479.83,0.00011232,2]
[423179616,1779906649000,-588.39,0.00011232,2]
[423179612,1779906649000,-500.0,0.00011232,2]
[423179601,1779906649000,-500.0,0.00011232,2]
[423179603,1779906649000,-573.21,0.00011232,2]
[423179597,1779906649000,-1139.82,0.00011232,2]
[423179606,1779906649000,-507.42,0.00011232,2]
[423179595,1779906649000,-546.75,0.00011232,2]
[423179593,1779906649000,-506.11,0.00011232,2]
[423179599,1779906649000,-500.0,0.00011232,2]
[423179757,1779906650000,-727.3586,0.0001178,2]
[423179749,1779906650000,-500.0,0.0001178,2]
[423179751,1779906650000,-500.0,0.0001178,2]
[423179753,1779906650000,-500.0,0.0001178,2]
[423179747,1779906650000,-500.0,0.0001178,2]
[423179738,1779906650000,-500.0,0.0001178,2]
[423179734,1779906650000,-43166.9598429,0.00011748,2]
[423179743,1779906650000,-500.0,0.0001178,2]
[423179740,1779906650000,-500.0,0.0001178,2]
[423179741,1779906650000,-371.93,0.0001178,2]
[423179755,1779906650000,-500.0,0.0001178,2]
[423179736,1779906650000,-165.36,0.0001178,2]
[423179745,1779906650000,-500.0,0.0001178,2]
[423179759,1779906650000,-965.77,0.0001178,2]
[423179785,1779906650000,-500.0,0.0001178,2]
[423179763,1779906650000,-683.64,0.0001178,2]
[423179765,1779906650000,-506.11,0.0001178,2]
[423179767,1779906650000,-546.75,0.0001178,2]
[423179775,1779906650000,-573.21,0.0001178,2]
[423179769,1779906650000,-1139.82,0.0001178,2]
[423179779,1779906650000,-1479.83,0.0001178,2]
[423179773,1779906650000,-500.0,0.0001178,2]
[423179771,1779906650000,-500.0,0.0001178,2]
[423179777,1779906650000,-507.42,0.0001178,2]
[423179781,1779906650000,-504.1,0.0001178,2]
[423179786,1779906650000,-588.39,0.0001178,2]
[423179788,1779906650000,-529.4,0.0001178,2]
[423179721,1779906650000,-185.0,0.00011723,2]
[423179761,1779906650000,-967.47,0.0001178,2]
[423179723,1779906650000,-207.594228,0.00011731,2]
[423179684,1779906650000,-500.0,0.00011506,2]
[423179719,1779906650000,-443.0,0.00011723,2]
[423179802,1779906650000,-7883.58,0.0001178,2]
[423179682,1779906650000,-500.0,0.00011506,2]
[423179688,1779906650000,-507.42,0.00011506,2]
[423179686,1779906650000,-573.21,0.00011506,2]
[423179690,1779906650000,-1479.83,0.00011506,2]
[423179692,1779906650000,-504.1,0.00011506,2]
[423179694,1779906650000,-500.0,0.00011506,2]
[423179696,1779906650000,-500.0,0.00011506,2]
[423179698,1779906650000,-588.39,0.00011506,2]
[423179702,1779906650000,-500.0,0.00011506,2]
[423179700,1779906650000,-529.4,0.00011506,2]
[423179701,1779906650000,-1068.64,0.00011506,2]
[423179703,1779906650000,-1023.91,0.00011506,2]
[423179717,1779906650000,-648.0,0.00011723,2]
[423179704,1779906650000,-500.0,0.00011506,2]
[423179708,1779906650000,-500.0,0.00011506,2]
[423179706,1779906650000,-500.0,0.00011506,2]
[423179710,1779906650000,-500.0,0.00011506,2]
[423179707,1779906650000,-7883.58,0.00011506,2]
[423179709,1779906650000,-500.0,0.00011506,2]
[423179711,1779906650000,-578.04,0.00011506,2]
[423179714,1779906650000,-500.0,0.00011506,2]
[423179726,1779906650000,-207.594228,0.00011731,2]
[423179725,1779906650000,-207.594228,0.00011731,2]
[423179730,1779906650000,-633.8001067,0.00011748,2]
[423179728,1779906650000,-207.59422093,0.00011731,2]
[423179732,1779906650000,-151.3723463,0.00011748,2]
[423179715,1779906650000,-9279.16708706,0.00011617,2]
[423179705,1779906650000,-500.0,0.00011506,2]
[423179792,1779906650000,-500.0,0.0001178,2]
[423179783,1779906650000,-500.0,0.0001178,2]
[423179798,1779906650000,-500.0,0.0001178,2]
[423179844,1779906650000,-727.3586,0.00012054,2]
[423179864,1779906650000,-507.42,0.00012054,2]
[423179865,1779906650000,-1479.83,0.00012054,2]
[423179867,1779906650000,-504.1,0.00012054,2]
[423179870,1779906650000,-500.0,0.00012054,2]
[423179880,1779906650000,-500.0,0.00012054,2]
[423179881,1779906650000,-1023.91,0.00012054,2]
[423179872,1779906650000,-500.0,0.00012054,2]
[423179874,1779906650000,-588.39,0.00012054,2]
[423179884,1779906650000,-500.0,0.00012054,2]
[423179877,1779906650000,-1068.64,0.00012054,2]
[423179876,1779906650000,-529.4,0.00012054,2]
[423179885,1779906650000,-500.0,0.00012054,2]
[423179889,1779906650000,-7883.58,0.00012054,2]
[423179887,1779906650000,-500.0,0.00012054,2]
[423179891,1779906650000,-500.0,0.00012054,2]
[423179893,1779906650000,-500.0,0.00012054,2]
[423179895,1779906650000,-500.0,0.00012054,2]
[423179905,1779906650000,-500.0,0.00012328,2]
[423179900,1779906650000,-500.0,0.00012054,2]
[423179901,1779906650000,-301.0,0.00012055,3]
[423179897,1779906650000,-578.04,0.00012054,2]
[423179911,1779906650000,-500.0,0.00012328,2]
[423179903,1779906650000,-9620.43271315,0.0001209,2]
[423179909,1779906650000,-500.0,0.00012328,2]
[423179915,1779906650000,-500.0,0.00012328,2]
[423179913,1779906650000,-214.92,0.00012328,2]
[423179917,1779906650000,-727.3586,0.00012328,2]
[423179796,1779906650000,-500.0,0.0001178,2]
[423179862,1779906650000,-573.21,0.00012054,2]
[423179850,1779906650000,-683.64,0.00012054,2]
[423179907,1779906650000,-500.0,0.00012328,2]
[423179848,1779906650000,-967.47,0.00012054,2]
[423179846,1779906650000,-965.77,0.00012054,2]
[423179794,1779906650000,-1023.91,0.0001178,2]